[Event "31st MPL National U18 Chess-ch 2022"]
[Site "Pollachi"]
[Date "2022.04.20"]
[Round "5.1"]
[White "Bharath Subramaniyam H"]
[Black "Mahendra Teja Mekala"]
[Result "1-0"]
[ECO "A13"]
[WhiteElo "2508"]
[BlackElo "1875"]
[Annotator "TA"]
[PlyCount "73"]
[EventDate "2022.04.18"]
[EventCountry "IND"]
[SourceTitle "playchess.com"]
[Source "ChessBase"]
[SourceQuality "1"]
[TimeControl "5400+30"]

{[%evp 11,73,0,7,8,13,3,59,45,49,30,71,63,93,72,84,92,87,82,86,82,75,68,63,80,78,68,70,69,97,96,80,75,69,0,228,228,300,269,259,287,517,515,499,509,540,554,527,515,505,508,511,513,483,477,646,633,674,646,863,947,1091,1068,959,885]} 1. b3 {[%emt 0:00:04]} Nf6 {[%emt 0:01:14]} 2. Bb2 {[%emt 0:00:24]} e6 {[%emt 0:00:49]} 3. Nf3 {[%emt 0:00:11]} d5 {[%emt 0:00:15]} 4. c4 {[%emt 0:00:09]} Be7 {[%emt 0:00:39]} 5. e3 {[%emt 0:00:10]} O-O {[%emt 0:00:52]} 6. Nc3 {[%emt 0:00:12]} b6 {[%emt 0:00:33]} 7. cxd5 {[%emt 0:02:37] A13: English Opening: 1...e6.} exd5 {[%emt 0:00:24]} 8. d4 {[%emt 0:00:19]} Be6 {[%emt 0:08:01]} ({Black should play} 8... Re8 $11) 9. Bd3 $14 {[%emt 0:03:33] White is slightly better.} c5 {[%emt 0:03:16]} 10. Rc1 {[%emt 0:16:30]} Nbd7 {[%emt 0:02:39]} 11. O-O {[%emt 0:02:13] [#] &Bianco is more active.} Rc8 $146 {[%emt 0:07:43]} ({Predecessor:} 11... Re8 12. Bb1 a6 13. Ne5 cxd4 14. Nc6 dxc3 15. Nxd8 cxb2 16. Rc7 Rexd8 17. Qe2 Bd6 {0-1 (33) Johnson,B (2118)-Ronka,E (2324) Chess.com INT 2021}) 12. h3 {[%emt 0:10:33]} Bd6 {[%emt 0:08:22]} 13. Ba6 {[%emt 0:08:11]} Rb8 {[%emt 0:02:24]} 14. Nb5 {[%emt 0:04:50][%csl LRa7,LRd6]} Ne4 {[%emt 0:07:43]} 15. Nxd6 {[%emt 0:07:18]} Nxd6 {[%emt 0:01:03]} 16. dxc5 {[%emt 0:00:15]} bxc5 {[%emt 0:01:15]} 17. Bd3 {[%emt 0:10:39] A strong pair of Bishops.} Rc8 {[%emt 0:04:20]} 18. Bb1 $40 {[%emt 0:05:49][%mdl 128] White has some attack.} Qe7 {[%emt 0:02:24]} 19. Qe2 {[%emt 0:02:21]} Ne4 {[%emt 0:13:34]} 20. Rfd1 {[%emt 0:01:36]} f5 {[%emt 0:01:35]} 21. Qa6 {[%emt 0:06:48][%cal Of3d4]} Rce8 {[%emt 0:06:35]} 22. Qxa7 {[%emt 0:08:56]} g5 $2 {[%emt 0:02:47] Black is on the road to losing.} (22... f4 $1 $11 23. Re1 fxe3 24. Rxe3 Qd6) 23. Ne5 $18 {[%emt 0:01:21]} Ra8 {[%emt 0:01:41]} 24. Qb7 {[%emt 0:00:16] [#] Threatens to win with Bxe4.} Rfb8 {[%emt 0:03:50]} 25. Nc6 $1 {[%emt 0:00:31][%csl LRb8,LRe7]} Qf7 {[%emt 0:03:30]} (25... Rxb7 26. Nxe7+ Kf7) 26. Nxb8 {[%emt 0:00:15] White is clearly winning.} Rxb8 {[%emt 0:00:04]} 27. Qc7 {[%emt 0:01:06]} Rf8 {[%emt 0:00:36]} 28. f3 {[%emt 0:01:38]} Nef6 {[%emt 0:00:25]} 29. Qg3 {[%emt 0:01:35]} h6 {[%emt 0:00:35]} 30. a4 {[%emt 0:01:29]} f4 {[%emt 0:00:17]} 31. Qe1 {[%emt 0:00:41]} fxe3 {[%emt 0:00:15]} 32. Bxf6 {[%emt 0:00:18]} Nxf6 {[%emt 0:00:11]} 33. Rxc5 {[%emt 0:00:33]} Bxh3 {[%emt 0:03:09]} 34. Qxe3 {[%emt 0:01:37]} Bxg2 {[%emt 0:03:30]} 35. Kxg2 {[%emt 0:00:06]} Nh5 {[%emt 0:00:04]} 36. Rdc1 {[%emt 0:01:16] [#] Strongly threatening Rc8.} Nf4+ {[%emt 0:00:11]} 37. Kg1 {[%emt 0:00:28] Weighted Error Value: White=0.03 (flawless) /Black=0.46} 1-0

[Event "31st MPL National U18 Chess-ch 2022"]
[Site "Pollachi"]
[Date "2022.04.20"]
[Round "5.2"]
[White "Soham Kamotra"]
[Black "Krishnan Ritvik"]
[Result "1-0"]
[ECO "A37"]
[WhiteElo "2229"]
[BlackElo "1761"]
[Annotator "TA"]
[PlyCount "133"]
[EventDate "2022.04.18"]
[EventCountry "IND"]
[SourceTitle "playchess.com"]
[Source "ChessBase"]
[SourceQuality "1"]
[TimeControl "5400+30"]

{[%evp 12,133,0,-9,-10,-12,6,-10,-5,-4,46,54,31,43,51,51,56,52,89,89,97,110,85,91,53,0,41,43,45,27,47,16,83,64,85,71,204,203,224,216,314,191,177,163,178,107,295,283,297,281,417,406,378,25,18,0,0,0,0,0,4,4,10,0,0,0,0,0,0,0,0,0,8,8,45,28,81,56,36,0,95,0,47,41,37,39,141,112,112,112,112,112,987,983,1238,1238,1224,1224,1216,1209,1209,1209,1202,1202,1195,1187,1187,1187,1170,1166,910,843,29968,29969,29969,29970,29970,29971,29972,29971,29970,29971,29958,4630]} 1. c4 {[%emt 0:03:26]} g6 {[%emt 0:00:02]} 2. g3 {[%emt 0:00:23]} Bg7 {[%emt 0:00:02]} 3. Bg2 {[%emt 0:00:08]} c5 {[%emt 0:00:01]} 4. Nc3 {[%emt 0:00:10]} Nc6 {[%emt 0:00:02]} 5. Nf3 {[%emt 0:00:08]} e6 {[%emt 0:00:01]} 6. d3 {[%emt 0:02:39]} Nge7 {[%emt 0:00:06]} 7. h4 {[%emt 0:00:12]} h6 {[%emt 0:00:29] A37: Symmetrical English vs ...g6: 4 Bg2 Bg7 5 Nf3.} 8. Bf4 {[%emt 0:00:44]} d5 {[%emt 0:02:58] [#]} 9. O-O $146 {[%emt 0:06:04]} ({Predecessor:} 9. cxd5 exd5 10. Rc1 b6 11. Qd2 Ba6 12. O-O Qd7 13. a3 Rc8 14. b4 cxb4 15. axb4 Nxb4 {1-0 (35) Grachev,B (2621)-Dvalishvili,P (2414) Moscow 2019}) 9... d4 {[%emt 0:04:48] The position is equal.} 10. Na4 {[%emt 0:02:21]} e5 {[%emt 0:00:52]} (10... b6 $1 $11) 11. Bd2 $14 {[%emt 1:19:45]} b6 {[%emt 0:05:48]} 12. a3 $1 {[%emt 0:00:00][%cal Ba2a3,Ba3b4][%mdl 32]} Qd6 {[%emt 0:10:28]} 13. b4 {[%emt 0:00:00]} Rb8 {[%emt 0:01:56][%cal Rc5b4]} (13... cxb4 14. axb4 Rb8 15. b5 $16) 14. Rb1 {[%emt 0:00:00]} cxb4 {[%emt 0:09:42]} 15. axb4 {[%emt 0:00:00]} b5 {[%emt 0:00:50]} 16. cxb5 {[%emt 0:00:00]} ({Don't play} 16. Nc5 bxc4 17. Ne4 (17. dxc4 Bf5 $11) 17... Qc7 18. dxc4 O-O $14) 16... Rxb5 {[%emt 0:00:04]} 17. Nc5 {[%emt 0:00:00]} O-O {[%emt 0:02:12]} 18. Qc1 {[%emt 0:00:00]} (18. Qa4 $14 a6 19. Ne1 (19. Nxa6 Bxa6 20. Qxa6 Rfb8 $14)) 18... Qb8 {[%emt 0:07:28]} 19. Bxh6 {[%emt 0:00:00][%cal Oh4h5]} Nxb4 {[%emt 0:00:35]} 20. Bxg7 {[%emt 0:00:00]} Kxg7 {[%emt 0:00:03]} 21. Qc4 {[%emt 0:00:00][%cal Of3e5] Hoping for Nxe5!} (21. h5 $5) 21... Nec6 {[%emt 0:03:05]} (21... a6 $11 {remains equal.}) 22. Ng5 {[%emt 0:00:00]} Na5 {[%emt 0:01:06]} 23. Qc1 $36 {[%emt 0:00:00][%cal Oh4h5][%mdl 2048] Keeping Black busy. &Bianco is much more active.} Na2 {[%emt 0:02:01] [#]} (23... Qb6 $16 24. Nge4 Qd8) 24. Rxb5 $1 $18 {[%emt 0:00:00]} Qxb5 {[%emt 0:00:04]} 25. Qa3 {[%emt 0:00:00]} Nc3 {[%emt 0:01:21]} 26. Ra1 {[%emt 0:00:00]} Nc6 {[%emt 0:02:18]} 27. Bf3 {[%emt 0:00:00] Black must now prevent Nce4.} a5 {[%emt 0:03:42]} 28. h5 {[%emt 0:00:00]} (28. Nce4 $18 {Threatens to win with Qd6.} Nxe4 29. Bxe4) 28... Rh8 $2 {[%emt 0:02:40]} (28... Nb4 $16 29. Nce4 (29. Qxa5 Qxa5 30. Rxa5 gxh5 $14) 29... Nxe4 30. Nxe4 f6 31. Qxa5 Qxa5 32. Rxa5 gxh5) 29. Nce4 $1 {[%emt 0:00:00]} Nxe4 {[%emt 0:02:10]} 30. Nxe4 {[%emt 0:00:00]} gxh5 {[%emt 0:02:19]} (30... Nb4 $142 31. Qxa5 Qxa5 32. Rxa5 gxh5 33. Rxe5 Be6 34. Rg5+ (34. Rxh5 Rxh5 35. Bxh5 Kh6 $18) 34... Kf8 35. Bxh5 Nd5) 31. Nd6 {[%emt 0:00:00]} ({Not} 31. Qd6 Rh6 32. Qc7 Qb7 33. Qxb7 Bxb7 $11) 31... Qb6 {[%emt 0:00:54]} 32. Qc1 $2 {[%emt 0:00:00]} (32. Bxc6 $18 Qxc6 33. Rc1) 32... Ne7 $1 $11 {[%emt 0:01:22]} 33. Nc4 {[%emt 0:00:00][%mdl 64] Deflection} Qf6 {[%emt 0:01:35]} 34. Rxa5 {[%emt 0:00:00]} Ng6 {[%emt 0:00:07]} 35. Nd2 {[%emt 0:00:00]} Qg5 {[%emt 0:03:44]} 36. Rc5 {[%emt 0:00:00]} Bg4 {[%emt 0:00:54]} 37. Ne4 {[%emt 0:00:00]} Qxc1+ {[%emt 0:00:31]} 38. Rxc1 {[%emt 0:00:00]} Bxf3 {[%emt 0:00:02]} 39. exf3 {[%emt 0:00:00][%mdl 4096] Endgame KRN-KRN} Ra8 {[%emt 0:00:48]} 40. Rc7 {[%emt 0:00:00]} Ra3 {[%emt 0:00:32]} 41. Nd6 {[%emt 0:00:00]} Rxd3 {[%emt 0:00:47]} 42. Rxf7+ {[%emt 0:00:00]} Kh6 {[%emt 0:00:37]} 43. Rd7 {[%emt 0:00:00] And now Nf7+ would win.} Kg5 {[%emt 0:07:00]} (43... Rxf3 $11 {keeps the balance.} 44. Nf7+ Rxf7 45. Rxf7 h4) 44. Ne4+ {[%emt 0:00:00]} Kh6 {[%emt 0:00:01]} (44... Kf5 $2 45. Kg2 $18) 45. Nd6 {[%emt 0:00:00]} (45. Kg2 $14) 45... Kg5 $16 {[%emt 0:00:02]} 46. Rf7 {[%emt 0:00:00]} ({White should play} 46. Kg2 $1 $16) 46... h4 {[%emt 0:01:21]} (46... Kh6 $11 {is superior.}) 47. Kg2 {[%emt 0:00:22]} hxg3 {[%emt 0:00:51]} 48. fxg3 {[%emt 0:01:13]} Rd1 {[%emt 0:10:27] White stays focused until the end.} (48... Rb3 $14) 49. Rf5+ {[%emt 0:01:45]} Kh6 {[%emt 0:00:01]} 50. Nf7+ $1 {[%emt 0:00:06]} Kg7 {[%emt 0:00:01] aiming for ...Ne7.} 51. Nxe5 {[%emt 0:00:07]} d3 $2 {[%emt 0:01:52][%mdl 8192] [#]} (51... Nxe5 $16 52. Rxe5 Rd2+ 53. Kh3 Rf2) 52. Nxg6 $1 $18 {[%emt 0:00:34]} Kxg6 {[%emt 0:00:54] KR-KR} 53. Rd5 {[%emt 0:00:06]} Kf6 {[%emt 0:00:45]} 54. Kf2 {[%emt 0:01:43]} Ke6 {[%emt 0:00:36]} 55. Rd8 {[%emt 0:00:06]} Ke5 {[%emt 0:00:17]} 56. Ke3 {[%emt 0:02:26]} Re1+ {[%emt 0:00:01]} 57. Kd2 {[%emt 0:00:01] White wants to mate with Re8+.} Rg1 {[%emt 0:00:35]} 58. g4 {[%emt 0:00:15][%cal Bg3g4,Bg4g5,Bg5g6][%mdl 32]} Rf1 59. Rxd3 {[%emt 0:00:30]} Kf4 {[#]} 60. Ke2 $1 {[%emt 0:00:30] Rd4+ would kill now.} Ra1 61. Rd4+ {[%emt 0:00:30]} Kg3 62. g5 {[%emt 0:00:30] White mates.} Ra2+ 63. Ke3 {[%emt 0:00:30]} Ra3+ 64. Ke4 {[%emt 0:00:30]} Ra5 65. Rd5 {[%emt 0:00:30]} Ra4+ 66. Kf5 {[%emt 0:00:30]} Kxf3 67. g6 {[%emt 0:00:30] Weighted Error Value: White=0.25 (precise) /Black=0.27 (precise)} 1-0

[Event "31st MPL National U18 Chess-ch 2022"]
[Site "Pollachi"]
[Date "2022.04.20"]
[Round "5.3"]
[White "Dinesh Kumar Jaganathan"]
[Black "Srihari L R"]
[Result "0-1"]
[ECO "A30"]
[WhiteElo "1943"]
[BlackElo "2400"]
[Annotator "TA"]
[PlyCount "48"]
[EventDate "2022.04.18"]
[EventCountry "IND"]
[SourceTitle "playchess.com"]
[Source "ChessBase"]
[SourceQuality "1"]
[TimeControl "5400+30"]

{[%evp 23,48,53,50,-8,0,0,0,-28,-30,-71,-71,-84,-54,-54,-37,-85,-78,-233,-227,-311,-185,-434,-441,-437,-400,-392,-406]} 1. Nf3 {[%emt 0:01:07]} Nf6 {[%emt 0:00:25]} 2. c4 {[%emt 0:00:13]} e6 {[%emt 0:00:19]} 3. g3 {[%emt 0:00:13]} b6 {[%emt 0:00:18]} 4. Bg2 {[%emt 0:00:09]} Bb7 {[%emt 0:00:07]} 5. O-O {[%emt 0:00:08]} c5 {[%emt 0:01:26]} 6. Nc3 {[%emt 0:00:13]} Be7 {[%emt 0:00:06]} 7. b3 {[%emt 0:03:43]} O-O {[%emt 0:00:40]} 8. Bb2 {[%emt 0:00:09]} d6 {[%emt 0:03:33]} 9. d4 {[%emt 0:00:48]} cxd4 {[%emt 0:00:16]} 10. Qxd4 {[%emt 0:00:08]} a6 {[%emt 0:03:06]} 11. Rfd1 {[%emt 0:00:30]} Qc7 {[%emt 0:00:07]} 12. Rac1 {[%emt 0:00:06]} Nbd7 {[%emt 0:06:13]} 13. Ng5 {[%emt 0:09:38] 13.Nh4 is the modern continuation. A30: Symmetrical English: Double Fianchetto and Hedgehog.} (13. e4 $14) 13... Bxg2 $11 {[%emt 0:05:10]} 14. Kxg2 {[%emt 0:00:03]} Qb7+ {[%emt 0:15:59]} 15. Kg1 {[%emt 0:00:02] The position is equal.} b5 {[%emt 0:02:01]} 16. cxb5 {[%emt 0:14:54]} axb5 {[%emt 0:00:32]} 17. Qb4 {[%emt 0:01:03]} Nc5 {[%emt 0:08:28]} 18. a4 {[%emt 0:03:55]} d5 {[%emt 0:14:48][%cal Oc5a4] Threatens to win with ...Nxa4!} (18... bxa4 $5 {[%cal Rb7b4]} 19. Qxb7 Nxb7 20. Nxa4 Na5 $15) 19. Qxb5 {[%emt 0:03:56] [#]} (19. Nxb5 $2 Nxa4 $1 {[%mdl 512]} 20. Qxa4 Rxa4 21. bxa4 Qa6 $19) (19. Ba3 $15) 19... Rfb8 $146 {[%emt 0:00:08]} ({Predecessor:} 19... Qxb5 20. Nxb5 Nxb3 21. Rc7 Rfe8 22. Rb1 Na5 23. Bc3 h6 24. Bxf6 Bxf6 25. Nxf7 Nc4 {½-½ (47) Wild,A (2236)-Boehm,M (2207) Bann 2018}) 20. Ba3 $2 {[%emt 0:08:32]} (20. e3 $17) 20... Qa7 $19 {[%emt 0:01:46]} (20... Nxb3 $2 21. Qxb7 Rxb7 22. Rb1 Bxa3 23. Nb5) 21. Qc6 {[%emt 0:06:18] Black must now prevent Nb5.} Rc8 {[%emt 0:01:54]} ({Stronger than} 21... Rxb3 {[#]} 22. Nxd5 $1 (22. Nb5 Qxa4 23. Bxc5 Bxc5 $11) 22... exd5 23. Bxc5 Bxc5 24. Qxc5 (24. Rxc5 h6 $11) 24... Qxc5 25. Rxc5 $14) (21... Nxb3 $142 22. Bxe7 Nxc1 23. Bxf6 Rc8 $1) 22. Bxc5 $2 {[%emt 0:01:11]} (22. Nb5 Rxc6 23. Nxa7 Rxa7 24. Nf3) 22... Bxc5 {[%emt 0:00:06]} (22... Rxc6 $2 23. Bxa7 Ba3 24. Bd4 Bxc1 25. Rxc1 $18) 23. Nb5 {[%emt 0:01:20]} Bxf2+ {[%emt 0:00:06]} ({Inferior is} 23... Rxc6 24. Nxa7 Rxa7 25. b4 $17) 24. Kg2 {[%emt 0:01:38]} Rxc6 {[%emt 0:00:10] White did not feel at home in the position after the opening.  Weighted Error Value: White=0.63/Black=0.20 (precise)} 0-1

[Event "31st MPL National U18 Chess-ch 2022"]
[Site "Pollachi"]
[Date "2022.04.20"]
[Round "5.4"]
[White "Avinash Ramesh"]
[Black "Manish Anto Cristiano F"]
[Result "1-0"]
[ECO "A50"]
[WhiteElo "2402"]
[BlackElo "2236"]
[Annotator "TA"]
[PlyCount "71"]
[EventDate "2022.04.18"]
[EventCountry "IND"]
[SourceTitle "playchess.com"]
[Source "ChessBase"]
[SourceQuality "1"]
[TimeControl "5400+30"]

{[%evp 9,71,11,-6,-26,-35,-41,-47,-47,-7,-25,-5,-13,28,-44,231,-103,246,260,240,254,227,232,256,225,232,205,277,279,301,304,303,297,334,218,215,209,407,406,406,408,533,525,567,564,651,615,707,692,1050,1047,1483,1468,29986,29987,29987,29988,29988,29989,29989,29990,29990,29976,29989,9253]} 1. d4 {[%emt 0:00:21][%cal Bd2d4,Bd4d5][%mdl 32]} Nf6 {[%emt 1:31:00]} 2. c4 {[%emt 0:00:06]} e6 {[%emt 0:00:00]} 3. Bf4 {[%emt 0:00:21]} c5 {[%emt 0:00:00]} 4. d5 {[%emt 0:01:25]} b5 {[%emt 0:00:00] [#]} 5. e4 $146 {[%emt 0:05:45]} ({Predecessor:} 5. Nc3 a6 6. Nf3 b4 7. Na4 d6 8. e4 Nxe4 9. Bd3 Nf6 10. O-O e5 11. Re1 {0-1 (25) Paravyan,D (2647)-Shcherbakov,R (2527) Chess.com INT 2021}) 5... Nxe4 {[%emt 0:00:00]} 6. Bd3 {[%emt 0:02:41] A50: Queen's Fianchetto Defence (1 d4 Nf6 2 c4 b6).} Nf6 {[%emt 0:00:00]} 7. dxe6 {[%emt 0:01:32]} fxe6 {[%emt 0:00:00]} ({Don't take} 7... dxe6 8. Qf3 Na6 9. a3 $14 (9. Qxa8 Nb4 $14)) 8. cxb5 {[%emt 0:22:03] Black is slightly better.} Bb7 {[%emt 0:00:00]} 9. Nf3 {[%emt 0:00:11]} Be7 {[%emt 0:04:00]} 10. O-O {[%emt 0:00:21]} O-O {[%emt 0:00:00]} 11. Ng5 {[%emt 0:05:47]} (11. Nbd2 $11) 11... Nd5 $2 {[%emt 0:00:00][%mdl 8192]} (11... a6 $15 12. Nc3 axb5 13. Nxb5 (13. Bxb5 Nc6 $15) 13... h6) 12. Bxh7+ $18 {[%emt 0:20:55]} Kh8 {[%emt 0:00:00] [#] Black is on the road to losing.} 13. Be4 $1 {[%emt 0:00:14] White wants to mate with Qh5+.} Nxf4 {[%emt 0:00:00]} 14. Bxb7 {[%emt 0:00:36]} Bxg5 {[%emt 0:00:00]} 15. Bxa8 {[%emt 0:01:33] Black must now prevent g3.} Qf6 {[%emt 0:00:00]} 16. Nc3 {[%emt 0:02:02] And now g3 would win.} d5 {[%emt 0:00:00]} 17. Bc6 {[%emt 0:06:12] Inhibits Nd7. g3 is the strong threat.} Bh6 {[%emt 0:00:00]} 18. Ne2 {[%emt 0:05:53]} Ng6 {[%emt 0:00:00][%cal Bf4g6,Bg6e5,Be5c4,Bc4b2][%mdl 32]} 19. Qc2 {[%emt 0:00:55]} c4 {[%emt 0:00:00]} 20. b3 {[%emt 0:00:54]} Ne5 {[%emt 0:00:00]} 21. bxc4 {[%emt 0:02:28]} Nxc4 {[%emt 0:00:00]} 22. Qc3 {[%emt 0:01:05]} Qe7 $2 {[%emt 0:00:00]} (22... Qxc3 {was worth a try.} 23. Nxc3 Rc8) 23. Rad1 {[%emt 0:01:10]} Nxc6 {[%emt 0:00:00]} 24. bxc6 {[%emt 0:00:07]} Rc8 {[%emt 0:00:26]} 25. Nd4 {[%emt 0:00:30]} Qf6 {[%emt 0:00:46]} 26. Qh3 {[%emt 0:00:42]} Nb2 {[%emt 0:00:30]} 27. Rd2 {[%emt 0:03:24]} Nc4 {[%emt 0:00:08]} 28. Rd3 {[%emt 0:00:06]} Nb2 {[%emt 0:00:05] [#]} 29. Rb3 {[%emt 0:01:01]} Qxd4 {[%emt 0:02:52]} (29... Kh7 30. Nxe6) 30. Qxe6 {[%emt 0:00:24]} Rc7 {[%emt 0:03:06]} 31. Qf5 {[%emt 0:02:29] White mates.} g5 {[%emt 0:01:50]} 32. Qg6 {[%emt 0:00:24]} Bf8 {[%emt 0:00:28]} 33. Rh3+ {[%emt 0:00:06]} Qh4 {[%emt 0:00:33]} 34. Rxh4+ {[%emt 0:00:05]} gxh4 {[%emt 0:00:07]} 35. Qf6+ {[%emt 0:00:03]} Bg7 {[%emt 0:00:09]} 36. Qd8+ {[%emt 0:00:06] Weighted Error Value: White=0.13 (very precise) /Black=0.78} (36. Qxh4+ $142 Kg8 37. Qd8+ Bf8 38. Qxc7 Nc4 39. Qg3+ Kf7 40. Qf4+ Kg8 41. c7) 1-0

[Event "31st MPL National U18 Chess-ch 2022"]
[Site "Pollachi"]
[Date "2022.04.20"]
[Round "5.5"]
[White "Harshad S"]
[Black "Dinesh Rajan M"]
[Result "1/2-1/2"]
[ECO "C64"]
[WhiteElo "2328"]
[BlackElo "1912"]
[Annotator "TA"]
[PlyCount "84"]
[EventDate "2022.04.18"]
[EventCountry "IND"]
[SourceTitle "playchess.com"]
[Source "ChessBase"]
[SourceQuality "1"]
[TimeControl "5400+30"]

{[%evp 10,84,48,46,37,32,43,27,36,25,65,31,35,27,17,25,38,26,33,21,14,19,30,45,48,40,27,0,0,0,0,0,20,58,29,44,42,44,134,143,100,114,312,305,582,562,657,637,931,126,136,116,196,195,175,94,93,46,135,69,421,37,108,57,87,0,0,0,0,-144,227,-289,-46,-46,-29,-15,-14]} 1. e4 {[%emt 0:00:05]} e5 {[%emt 0:00:12]} 2. Nf3 {[%emt 0:00:07]} Nc6 {[%emt 0:00:11]} 3. Bb5 {[%emt 0:00:14]} a6 {[%emt 0:00:48]} 4. Ba4 {[%emt 0:00:39]} Bc5 {[%emt 0:00:06]} 5. c3 {[%emt 0:00:54]} Nge7 {[%emt 0:00:16]} 6. O-O {[%emt 0:02:18]} Ng6 {[%emt 0:02:27] C64: Ruy Lopez: Classical Defence (3...Bc5) except 4 0-0 Nf6.} 7. d4 {[%emt 0:05:00]} Ba7 {[%emt 0:01:30]} 8. Be3 {[%emt 0:11:33] [#]} d6 $146 {[%emt 0:15:05] White has an edge.} ({Predecessor:} 8... f6 9. Bb3 d6 10. dxe5 Bxe3 11. fxe3 dxe5 12. Nbd2 Qe7 13. Bd5 Nd8 14. a4 Ne6 {1-0 (62) Sarana,A (2649)-Indjic,A (2607) Chess.com INT 2021}) 9. dxe5 {[%emt 0:13:43]} (9. Bg5 {is more complex.} f6 10. Be3 O-O 11. Re1) 9... Bxe3 {[%emt 0:09:24]} 10. Bxc6+ {[%emt 0:06:06]} (10. fxe3 {is interesting.} b5 11. Bb3 Ngxe5 12. Nxe5 Nxe5 13. Bxf7+ Nxf7 14. Qd5) 10... bxc6 {[%emt 0:00:14]} 11. fxe3 {[%emt 0:00:02]} O-O {[%emt 0:07:48]} 12. exd6 {[%emt 0:08:51]} cxd6 {[%emt 0:16:49]} 13. c4 {[%emt 0:11:00]} Bg4 {[%emt 0:05:57]} 14. Qd2 {[%emt 0:03:47]} Bxf3 {[%emt 0:10:56]} 15. gxf3 {[%emt 0:00:43]} f5 {[%emt 0:01:30]} 16. Nc3 {[%emt 0:05:46]} fxe4 {[%emt 0:05:12]} 17. Nxe4 {[%emt 0:01:16]} Ne5 {[%emt 0:00:35][%csl LRc4,LRf3]} 18. Qe2 {[%emt 0:02:58]} (18. f4 $5 {[%cal Rf4e5]} Nxc4 19. Qd3 $14) 18... d5 {[%emt 0:02:08]} 19. Nd2 {[%emt 0:03:41]} d4 {[%emt 0:03:46]} 20. Kh1 {[%emt 0:02:21]} d3 {[%emt 0:03:27]} 21. Qg2 {[%emt 0:07:15]} Qb6 {[%emt 0:00:20][%csl LRb2,LRe3]} 22. f4 {[%emt 0:00:22][%cal Bf3f4,Bf4f5][%mdl 32]} (22. Rg1 Ng6 $15) 22... Ng6 {[%emt 0:00:18]} 23. f5 {[%emt 0:01:30]} Nh4 {[%emt 0:06:57]} (23... Ne5 $14) 24. Qh3 $1 $36 {[%emt 0:00:38][%mdl 2048] White is on the roll.} (24. Qe4 $6 Qxb2 25. Rad1 Qf6 $11) 24... Qxb2 {[%emt 0:00:48]} 25. Rad1 {[%emt 0:00:41]} g5 {[%emt 0:03:30]} (25... Qf6 $16 {was necessary.}) 26. Rg1 $1 $18 {[%emt 0:04:51][%csl LRg5,LRh4]} Nxf5 $2 {[%emt 0:00:25]} (26... Qg7 27. e4 Kh8) 27. Rxg5+ {[%emt 0:02:41]} Ng7 {[%emt 0:00:01] [#]} 28. Rdg1 $1 {[%emt 0:00:34][%cal Og5h5]} Ra7 {[%emt 0:00:13] [#]} (28... Rf7 29. Qe6) 29. R5g2 {[%emt 0:00:42]} (29. Rh5 $1 $18 {[%cal Oh5h7] and the rest is easy.} Rf2 (29... Kf7 30. Rxh7) 30. Rxh7 $1) 29... Qe5 $16 {[%emt 0:00:30]} 30. e4 {[%emt 0:00:44] Strongly threatening Nf3.} Qd4 {[%emt 0:01:06]} (30... Kh8 $16 {was called for.} 31. Qxd3 Ne6) 31. Qh6 {[%emt 0:03:29]} c5 {[%emt 0:01:57]} 32. Qc6 {[%emt 0:00:53]} (32. Rg3 $18 Qf6 33. Qh5) 32... Kh8 {[%emt 0:00:50]} 33. Qd5 {[%emt 0:00:32]} (33. Rg3 $16) 33... Qe3 {[%emt 0:00:27] Against Nf3} (33... Rd7 $14 34. Qg5 (34. Qxd4 cxd4 35. Rb1 Rdf7 $11) 34... Rdf7) 34. Qe5 {[%emt 0:00:24]} (34. Nb3 $16) 34... Rg8 $2 {[%emt 0:00:59][%mdl 8192]} (34... Qd4 $14 35. Nf3 Qxe5 36. Nxe5 Ne6) 35. Qg5 $2 {[%emt 0:00:53]} ({Weaker is} 35. Qd5 Re7 $16) (35. Qf6 $18) 35... Qd4 {[%emt 0:00:19]} ({Better is} 35... Qxg5 $14 36. Rxg5 Rf7) 36. e5 {[%emt 0:01:17]} ({White should play} 36. Qh6 $16) 36... Re8 {[%emt 0:00:35]} 37. Nf3 {[%emt 0:00:00]} (37. Rf1 $1 $16) 37... Qxc4 $11 {[%emt 0:00:07] And now ...Qd5 would win.} 38. Qh6 {[%emt 0:00:15][%cal Rg2g7]} Qe6 {[%emt 0:00:17]} 39. Qh4 {[%emt 0:00:36]} (39. Rg6 $1 $11 {remains equal.} Qg8 40. Rd6 (40. Rxa6 Rxa6 41. Qxa6 c4 $17)) 39... Rae7 $2 {[%emt 0:00:52][%mdl 8192] [#]} (39... Qd5 $1 $17 {[%cal Rd5f3] and life is bright.} 40. Ng5 (40. Qf6 $2 Rf7 $19) 40... Ne6) 40. Qg3 {[%emt 0:00:31][%mdl 8192] [#]} (40. Ng5 $1 $18 {[%csl Gg5][%cal Rh4h7] is the narrow road to win.} Nf5 41. Qg4) 40... Rf8 $2 {[%emt 0:00:30]} (40... Qd5 $1 $19 {Threatens to win with ...c4.} 41. Qg4 Rf8) 41. Ng5 $1 $15 {[%emt 0:00:31][%csl LRd3,LRe6]} Qf5 {[%emt 0:00:45] ...Nh5 is the strong threat.} 42. e6 $1 {[%emt 0:00:18]} Nxe6 {[%emt 0:00:43] Black defended with fortune.  Weighted Error Value: White=0.56/Black=0.81} (42... Qd5 $2 43. Nf7+ Rfxf7 44. exf7 Qxf7 45. Qxd3 $18) 1/2-1/2